[Event "Titled Tuesday Blitz October 11 Early 2022"]
[White "Makhnev, Denis"]
[Black "Machidon, Cristi"]
[WhiteFideId "13707647"]
[BlackFideId "13904590"]
[WhiteElo "2486"]
[BlackElo "2312"]
[Result "1-0"]
[Round "02"]
[TimeControl "180+1"]
[Date "2022.10.11"]
[WhiteClock "0:00:13"]
[BlackClock "0:00:10"]

1. d4 {[%clk 0:03:00]}  Nf6 {[%clk 0:02:59]} 2. c4 {[%clk 0:03:01]}  e6 {[%clk 0:02:59]} 3. Nf3 {[%clk 0:03:01]}  b6 {[%clk 0:03:00]} 4. g3 {[%clk 0:03:01]}  Ba6 {[%clk 0:03:00]} 5. Qb3 {[%clk 0:03:00]}  Bb7 {[%clk 0:02:53]} 6. Bg2 {[%clk 0:02:45]}  c5 {[%clk 0:02:54]} 7. O-O {[%clk 0:02:45]}  cxd4 {[%clk 0:02:50]} 8. Nxd4 {[%clk 0:02:45]}  Bxg2 {[%clk 0:02:51]} 9. Kxg2 {[%clk 0:02:46]}  Qc7 {[%clk 0:02:49]} 10. Rd1 {[%clk 0:02:44]}  Nc6 {[%clk 0:02:48]} 11. Nb5 {[%clk 0:02:41]}  Qb7 {[%clk 0:02:47]} 12. Qf3 {[%clk 0:02:41]}  a6 {[%clk 0:02:37]} 13. Nd6+ {[%clk 0:02:41]}  Bxd6 {[%clk 0:02:37]} 14. Rxd6 {[%clk 0:02:42]}  O-O {[%clk 0:02:33]} 15. Nc3 {[%clk 0:02:32]}  Rac8 {[%clk 0:02:27]} 16. Bg5 {[%clk 0:02:25]}  Ne8 {[%clk 0:02:24]} 17. Rdd1 {[%clk 0:02:01]}  Rc7 {[%clk 0:02:23]} 18. b3 {[%clk 0:01:53]}  b5 {[%clk 0:02:08]} 19. c5 {[%clk 0:01:53]}  b4 {[%clk 0:01:59]} 20. Na4 {[%clk 0:01:51]}  h6 {[%clk 0:01:39]} 21. Bf4 {[%clk 0:01:51]}  e5 {[%clk 0:01:39]} 22. Be3 {[%clk 0:01:45]}  f5 {[%clk 0:01:27]} 23. Kg1 {[%clk 0:01:34]}  Kh7 {[%clk 0:01:20]} 24. Nb6 {[%clk 0:01:27]}  e4 {[%clk 0:01:14]} 25. Qh5 {[%clk 0:01:27]}  Ne7 {[%clk 0:01:07]} 26. Nc4 {[%clk 0:01:10]}  Nf6 {[%clk 0:01:04]} 27. Qh3 {[%clk 0:01:10]}  Nfd5 {[%clk 0:00:52]} 28. Bd4 {[%clk 0:01:04]}  Nc3 {[%clk 0:00:46]} 29. Rd2 {[%clk 0:01:00]}  Qb5 {[%clk 0:00:38]} 30. a4 {[%clk 0:00:54]}  Qc6 {[%clk 0:00:36]} 31. Nd6 {[%clk 0:00:46]}  Ned5 {[%clk 0:00:31]} 32. e3 {[%clk 0:00:36]}  Ne7 {[%clk 0:00:25]} 33. Re1 {[%clk 0:00:34]}  a5 {[%clk 0:00:25]} 34. Kh1 {[%clk 0:00:31]}  Ng6 {[%clk 0:00:20]} 35. Nxf5 {[%clk 0:00:27]}  Qe6 {[%clk 0:00:20]} 36. g4 {[%clk 0:00:27]}  Rf7 {[%clk 0:00:19]} 37. Rg1 {[%clk 0:00:22]}  Nd5 {[%clk 0:00:17]} 38. Qg3 {[%clk 0:00:20]}  Rc6 {[%clk 0:00:16]} 39. h4 {[%clk 0:00:14]}  Rxf5 {[%clk 0:00:15]} 40. gxf5 {[%clk 0:00:14]}  Qxf5 {[%clk 0:00:16]} 41. Qg4 {[%clk 0:00:14]}  Nde7 {[%clk 0:00:16]} 42. h5 {[%clk 0:00:13]}  Ne5 {[%clk 0:00:10]} 43. Qxg7# {[%clk 0:00:13]} 1-0


[Site "https://www.chess.com"]

[Event "Titled Tuesday Blitz October 11 Early 2022"]
[White "Malek, Jan"]
[Black "Harsha Bharathakoti"]
[WhiteFideId "21864080"]
[BlackFideId "5078776"]
[WhiteElo "2255"]
[BlackElo "2523"]
[Result "0-1"]
[Round "02"]
[TimeControl "180+1"]
[Date "2022.10.11"]
[WhiteClock "0:00:02"]
[BlackClock "0:00:04"]

1. c4 {[%clk 0:03:00]}  e6 {[%clk 0:02:56]} 2. Nf3 {[%clk 0:02:59]}  d5 {[%clk 0:02:55]} 3. e3 {[%clk 0:02:59]}  Nf6 {[%clk 0:02:53]} 4. b3 {[%clk 0:02:59]}  b6 {[%clk 0:02:53]} 5. Bb2 {[%clk 0:02:59]}  Bb7 {[%clk 0:02:54]} 6. Be2 {[%clk 0:02:58]}  Nbd7 {[%clk 0:02:54]} 7. O-O {[%clk 0:02:58]}  Bd6 {[%clk 0:02:54]} 8. Nc3 {[%clk 0:02:58]}  a6 {[%clk 0:02:55]} 9. Rc1 {[%clk 0:02:57]}  O-O {[%clk 0:02:55]} 10. Qc2 {[%clk 0:02:56]}  Qe7 {[%clk 0:02:52]} 11. Rfd1 {[%clk 0:02:55]}  Rfe8 {[%clk 0:02:50]} 12. h3 {[%clk 0:02:55]}  h6 {[%clk 0:02:49]} 13. d4 {[%clk 0:02:48]}  Rac8 {[%clk 0:02:42]} 14. Qb1 {[%clk 0:02:46]}  Ne4 {[%clk 0:02:34]} 15. Ne5 {[%clk 0:02:31]}  Nxc3 {[%clk 0:02:12]} 16. Bxc3 {[%clk 0:02:30]}  Bxe5 {[%clk 0:02:13]} 17. dxe5 {[%clk 0:02:30]}  dxc4 {[%clk 0:02:13]} 18. bxc4 {[%clk 0:01:24]}  Qg5 {[%clk 0:02:13]} 19. Bf1 {[%clk 0:01:25]}  Nf8 {[%clk 0:01:32]} 20. f4 {[%clk 0:01:22]}  Qg3 {[%clk 0:01:23]} 21. Qd3 {[%clk 0:01:21]}  Rcd8 {[%clk 0:01:06]} 22. Qe2 {[%clk 0:01:22]}  Qg6 {[%clk 0:01:06]} 23. c5 {[%clk 0:01:16]}  b5 {[%clk 0:01:06]} 24. Bd4 {[%clk 0:01:12]}  Bd5 {[%clk 0:00:59]} 25. Qf2 {[%clk 0:01:05]}  c6 {[%clk 0:00:44]} 26. a3 {[%clk 0:00:58]}  Be4 {[%clk 0:00:44]} 27. Kh2 {[%clk 0:00:56]}  h5 {[%clk 0:00:34]} 28. Bb2 {[%clk 0:00:54]}  Rd5 {[%clk 0:00:32]} 29. Rd4 {[%clk 0:00:50]}  Rxd4 {[%clk 0:00:30]} 30. Bxd4 {[%clk 0:00:49]}  Rd8 {[%clk 0:00:30]} 31. Ra1 {[%clk 0:00:40]}  a5 {[%clk 0:00:24]} 32. Ra2 {[%clk 0:00:32]}  Bd3 {[%clk 0:00:20]} 33. Qd2 {[%clk 0:00:23]}  Bxf1 {[%clk 0:00:18]} 34. Qxa5 {[%clk 0:00:21]}  Rd7 {[%clk 0:00:12]} 35. Rf2 {[%clk 0:00:22]}  Bd3 {[%clk 0:00:11]} 36. Qa8 {[%clk 0:00:21]}  Be4 {[%clk 0:00:10]} 37. Qc8 {[%clk 0:00:19]}  h4 {[%clk 0:00:09]} 38. Kg1 {[%clk 0:00:18]}  Qh5 {[%clk 0:00:08]} 39. Kh2 {[%clk 0:00:16]}  Qh8 {[%clk 0:00:05]} 40. f5 {[%clk 0:00:10]}  Bxf5 {[%clk 0:00:04]} 41. Qe8 {[%clk 0:00:05]}  Bg6 {[%clk 0:00:04]} 42. Qc8 {[%clk 0:00:04]}  Qh5 {[%clk 0:00:04]} 43. Rf4 {[%clk 0:00:04]}  Qg5 {[%clk 0:00:05]} 44. Rg4 {[%clk 0:00:05]}  Qf5 {[%clk 0:00:05]} 45. Rxh4 {[%clk 0:00:05]}  Qc2 {[%clk 0:00:05]} 46. Rg4 {[%clk 0:00:04]}  Qf5 {[%clk 0:00:05]} 47. Rf4 {[%clk 0:00:04]}  Qh5 {[%clk 0:00:06]} 48. Rg4 {[%clk 0:00:04]}  Ra7 {[%clk 0:00:06]} 49. Qd8 {[%clk 0:00:03]}  Rxa3 {[%clk 0:00:06]} 50. Qe8 {[%clk 0:00:02]}  Ra2 {[%clk 0:00:06]} 51. Rg3 {[%clk 0:00:02]}  Qf5 {[%clk 0:00:06]} 52. Qd8 {[%clk 0:00:01]}  Qf2 {[%clk 0:00:05]} 53. h4 {[%clk 0:00:02]}  Rd2 {[%clk 0:00:03]} 54. Qg5 {[%clk 0:00:02]}  Qf5 {[%clk 0:00:03]} 55. Qd8 {[%clk 0:00:01]}  Rd1 {[%clk 0:00:04]} 56. Rg4 {[%clk 0:00:02]}  Qxg4 {[%clk 0:00:04]} 0-1


[Site "https://www.chess.com"]

[Event "Titled Tuesday Blitz October 11 Early 2022"]
[White "Maltsevskaya, Aleksandra"]
[Black "Moroni, Luca Jr"]
[WhiteFideId "24174041"]
[BlackFideId "865834"]
[WhiteElo "2289"]
[BlackElo "2573"]
[Result "0-1"]
[Round "02"]
[TimeControl "180+1"]
[Date "2022.10.11"]
[WhiteClock "0:00:03"]
[BlackClock "0:01:05"]

1. e4 {[%clk 0:02:55]}  g6 {[%clk 0:03:00]} 2. d4 {[%clk 0:02:54]}  Bg7 {[%clk 0:03:01]} 3. Nf3 {[%clk 0:02:54]}  d6 {[%clk 0:03:02]} 4. Bd3 {[%clk 0:02:53]}  Nf6 {[%clk 0:03:02]} 5. O-O {[%clk 0:02:52]}  O-O {[%clk 0:03:03]} 6. Re1 {[%clk 0:02:53]}  Nc6 {[%clk 0:03:03]} 7. Bg5 {[%clk 0:02:51]}  h6 {[%clk 0:03:03]} 8. Bh4 {[%clk 0:02:51]}  g5 {[%clk 0:03:01]} 9. Bg3 {[%clk 0:02:52]}  Nh5 {[%clk 0:03:02]} 10. c3 {[%clk 0:02:51]}  e5 {[%clk 0:03:01]} 11. dxe5 {[%clk 0:02:39]}  Nxg3 {[%clk 0:03:00]} 12. hxg3 {[%clk 0:02:38]}  g4 {[%clk 0:02:58]} 13. Nd4 {[%clk 0:02:30]}  Nxe5 {[%clk 0:02:57]} 14. Na3 {[%clk 0:02:25]}  Bd7 {[%clk 0:02:43]} 15. Nc4 {[%clk 0:02:24]}  Nxd3 {[%clk 0:02:42]} 16. Qxd3 {[%clk 0:02:24]}  Qg5 {[%clk 0:02:43]} 17. Ne3 {[%clk 0:02:16]}  Rfe8 {[%clk 0:02:39]} 18. Ndf5 {[%clk 0:02:16]}  h5 {[%clk 0:02:31]} 19. Nd5 {[%clk 0:02:11]}  Rac8 {[%clk 0:02:25]} 20. Re2 {[%clk 0:01:53]}  Bxf5 {[%clk 0:02:05]} 21. exf5 {[%clk 0:01:52]}  c6 {[%clk 0:02:05]} 22. Ne3 {[%clk 0:01:06]}  d5 {[%clk 0:02:04]} 23. Rae1 {[%clk 0:01:04]}  Rcd8 {[%clk 0:02:01]} 24. a4 {[%clk 0:00:39]}  a6 {[%clk 0:02:00]} 25. f6 {[%clk 0:00:26]}  Bf8 {[%clk 0:01:58]} 26. Qf5 {[%clk 0:00:07]}  Qxf5 {[%clk 0:01:58]} 27. Nxf5 {[%clk 0:00:08]}  Rxe2 {[%clk 0:01:59]} 28. Rxe2 {[%clk 0:00:08]}  Kh7 {[%clk 0:02:00]} 29. Re5 {[%clk 0:00:05]}  Kg6 {[%clk 0:01:51]} 30. Nh4+ {[%clk 0:00:05]}  Kh6 {[%clk 0:01:44]} 31. f3 {[%clk 0:00:03]}  Bd6 {[%clk 0:01:26]} 32. Re2 {[%clk 0:00:03]}  Kg5 {[%clk 0:01:22]} 33. f4+ {[%clk 0:00:02]}  Kxf6 {[%clk 0:01:20]} 34. b4 {[%clk 0:00:02]}  d4 {[%clk 0:01:19]} 35. cxd4 {[%clk 0:00:01]}  Bxb4 {[%clk 0:01:19]} 36. Re5 {[%clk 0:00:02]}  Rxd4 {[%clk 0:01:16]} 37. Rxh5 {[%clk 0:00:03]}  Rd1+ {[%clk 0:01:08]} 38. Kh2 {[%clk 0:00:03]}  Rd5 {[%clk 0:01:09]} 39. Rh6+ {[%clk 0:00:03]}  Kg7 {[%clk 0:01:05]} 0-1


[Site "https://www.chess.com"]

[Event "Titled Tuesday Blitz October 11 Early 2022"]
[White "Manon-og, Ramon Jr."]
[Black "Kuznetsova, Olga"]
[WhiteFideId "5200776"]
[BlackFideId "4191323"]
[WhiteElo "2231"]
[BlackElo "2134"]
[Result "0-1"]
[Round "02"]
[TimeControl "180+1"]
[Date "2022.10.12"]
[WhiteClock "0:00:05"]
[BlackClock "0:00:18"]

1. e4 {[%clk 0:02:57]}  e5 {[%clk 0:03:00]} 2. Nf3 {[%clk 0:02:57]}  Nf6 {[%clk 0:03:00]} 3. Nxe5 {[%clk 0:02:57]}  d6 {[%clk 0:03:00]} 4. Nf3 {[%clk 0:02:56]}  Nxe4 {[%clk 0:03:01]} 5. d4 {[%clk 0:02:56]}  d5 {[%clk 0:03:01]} 6. Bd3 {[%clk 0:02:57]}  Bd6 {[%clk 0:03:01]} 7. O-O {[%clk 0:02:56]}  O-O {[%clk 0:03:01]} 8. h3 {[%clk 0:02:57]}  Re8 {[%clk 0:02:55]} 9. c4 {[%clk 0:02:57]}  c6 {[%clk 0:02:55]} 10. Nc3 {[%clk 0:02:57]}  Nxc3 {[%clk 0:02:55]} 11. bxc3 {[%clk 0:02:58]}  dxc4 {[%clk 0:02:55]} 12. Bxc4 {[%clk 0:02:58]}  Be6 {[%clk 0:02:55]} 13. Bxe6 {[%clk 0:02:57]}  Rxe6 {[%clk 0:02:55]} 14. Qb3 {[%clk 0:02:57]}  Qb6 {[%clk 0:02:50]} 15. Ng5 {[%clk 0:02:50]}  Re7 {[%clk 0:02:45]} 16. Be3 {[%clk 0:02:44]}  Qxb3 {[%clk 0:02:43]} 17. axb3 {[%clk 0:02:44]}  Nd7 {[%clk 0:02:43]} 18. Nf3 {[%clk 0:02:27]}  a6 {[%clk 0:02:43]} 19. Nd2 {[%clk 0:02:27]}  Rae8 {[%clk 0:02:41]} 20. Nc4 {[%clk 0:02:27]}  Bc7 {[%clk 0:02:41]} 21. Na5 {[%clk 0:02:23]}  Bxa5 {[%clk 0:02:40]} 22. Rxa5 {[%clk 0:02:24]}  f6 {[%clk 0:02:35]} 23. Rd1 {[%clk 0:02:20]}  Kf7 {[%clk 0:02:25]} 24. d5 {[%clk 0:02:20]}  cxd5 {[%clk 0:01:56]} 25. Raxd5 {[%clk 0:02:21]}  Ne5 {[%clk 0:01:56]} 26. c4 {[%clk 0:02:17]}  Nc6 {[%clk 0:01:56]} 27. Bc5 {[%clk 0:02:15]}  Rc7 {[%clk 0:01:56]} 28. Rd7+ {[%clk 0:02:15]}  Rxd7 {[%clk 0:01:53]} 29. Rxd7+ {[%clk 0:02:16]}  Kg6 {[%clk 0:01:53]} 30. Rxb7 {[%clk 0:02:16]}  Re1+ {[%clk 0:01:46]} 31. Kh2 {[%clk 0:02:16]}  Rb1 {[%clk 0:01:46]} 32. Bf8 {[%clk 0:02:11]}  Na5 {[%clk 0:01:46]} 33. Rxg7+ {[%clk 0:02:09]}  Kf5 {[%clk 0:01:46]} 34. b4 {[%clk 0:01:53]}  Nxc4 {[%clk 0:01:45]} 35. Rxh7 {[%clk 0:01:54]}  Rb2 {[%clk 0:01:41]} 36. Kg3 {[%clk 0:01:52]}  Nd2 {[%clk 0:01:40]} 37. Kh2 {[%clk 0:01:30]}  Ne4 {[%clk 0:01:34]} 38. f3 {[%clk 0:01:27]}  Nd2 {[%clk 0:01:33]} 39. Kg1 {[%clk 0:01:20]}  Nc4 {[%clk 0:01:30]} 40. Ra7 {[%clk 0:01:17]}  Ne3 {[%clk 0:01:29]} 41. Rxa6 {[%clk 0:01:16]}  Rxg2+ {[%clk 0:01:28]} 42. Kh1 {[%clk 0:01:15]}  Rb2 {[%clk 0:01:26]} 43. Be7 {[%clk 0:01:14]}  Nd5 {[%clk 0:01:25]} 44. Ra5 {[%clk 0:01:14]}  Ke6 {[%clk 0:01:24]} 45. Bd8 {[%clk 0:01:09]}  Rf2 {[%clk 0:01:21]} 46. b5 {[%clk 0:01:04]}  Rb2 {[%clk 0:01:02]} 47. b6 {[%clk 0:01:02]}  Ne3 {[%clk 0:00:58]} 48. Ra6 {[%clk 0:00:55]}  Kf5 {[%clk 0:00:45]} 49. Ra7 {[%clk 0:00:40]}  Kf4 {[%clk 0:00:39]} 50. Bxf6 {[%clk 0:00:26]}  Rxb6 {[%clk 0:00:38]} 51. Bd4 {[%clk 0:00:21]}  Rb1+ {[%clk 0:00:37]} 52. Kh2 {[%clk 0:00:21]}  Nf1+ {[%clk 0:00:18]} 53. Kg1 {[%clk 0:00:21]}  Ng3+ {[%clk 0:00:17]} 54. Kg2 {[%clk 0:00:21]}  Ne2 {[%clk 0:00:16]} 55. Bf2 {[%clk 0:00:19]}  Rb2 {[%clk 0:00:15]} 56. Ra4+ {[%clk 0:00:18]}  Kf5 {[%clk 0:00:16]} 57. h4 {[%clk 0:00:18]}  Nf4+ {[%clk 0:00:16]} 58. Kg3 {[%clk 0:00:18]}  Ne2+ {[%clk 0:00:16]} 59. Kh2 {[%clk 0:00:18]}  Nf4 {[%clk 0:00:16]} 60. Kg3 {[%clk 0:00:18]}  Ne2+ {[%clk 0:00:17]} 61. Kg2 {[%clk 0:00:18]}  Nc3 {[%clk 0:00:17]} 62. Kf1 {[%clk 0:00:18]}  Nxa4 {[%clk 0:00:17]} 63. h5 {[%clk 0:00:16]}  Kg5 {[%clk 0:00:17]} 64. Bd4 {[%clk 0:00:14]}  Rb1+ {[%clk 0:00:17]} 65. Kg2 {[%clk 0:00:14]}  Kxh5 {[%clk 0:00:18]} 66. Kg3 {[%clk 0:00:14]}  Rd1 {[%clk 0:00:18]} 67. Be5 {[%clk 0:00:14]}  Nc5 {[%clk 0:00:18]} 68. Bb2 {[%clk 0:00:11]}  Kg5 {[%clk 0:00:17]} 69. f4+ {[%clk 0:00:10]}  Kf5 {[%clk 0:00:18]} 70. Be5 {[%clk 0:00:09]}  Ne4+ {[%clk 0:00:18]} 71. Kf3 {[%clk 0:00:09]}  Rd3+ {[%clk 0:00:18]} 72. Ke2 {[%clk 0:00:09]}  Rb3 {[%clk 0:00:19]} 73. Bc7 {[%clk 0:00:08]}  Kg4 {[%clk 0:00:19]} 74. Be5 {[%clk 0:00:08]}  Ng3+ {[%clk 0:00:18]} 75. Kd2 {[%clk 0:00:07]}  Nf5 {[%clk 0:00:19]} 76. Bc7 {[%clk 0:00:07]}  Nd4 {[%clk 0:00:18]} 77. Bd6 {[%clk 0:00:06]}  Kf5 {[%clk 0:00:18]} 78. Bc7 {[%clk 0:00:05]}  Ke4 {[%clk 0:00:18]} 0-1


[Site "https://www.chess.com"]

[Event "Titled Tuesday Blitz October 11 Early 2022"]
[White "Manukyan, Artyom"]
[Black "Zaksaite, Salomeja"]
[WhiteFideId "13305786"]
[BlackFideId "12801496"]
[WhiteElo "2078"]
[BlackElo "2094"]
[Result "0-1"]
[Round "02"]
[TimeControl "180+1"]
[Date "2022.10.12"]
[WhiteClock "0:01:57"]
[BlackClock "0:00:05"]

1. e4 {[%clk 0:03:00]}  c5 {[%clk 0:02:59]} 2. Nc3 {[%clk 0:03:00]}  e6 {[%clk 0:02:58]} 3. Nge2 {[%clk 0:02:59]}  Nc6 {[%clk 0:02:57]} 4. g3 {[%clk 0:02:59]}  Nf6 {[%clk 0:02:46]} 5. Bg2 {[%clk 0:02:58]}  d5 {[%clk 0:02:46]} 6. exd5 {[%clk 0:02:59]}  exd5 {[%clk 0:02:46]} 7. d4 {[%clk 0:03:00]}  Bg4 {[%clk 0:02:40]} 8. h3 {[%clk 0:02:51]}  Bh5 {[%clk 0:02:25]} 9. g4 {[%clk 0:02:50]}  Bg6 {[%clk 0:02:25]} 10. g5 {[%clk 0:02:51]}  Ne4 {[%clk 0:02:07]} 11. Nf4 {[%clk 0:02:47]}  Nxd4 {[%clk 0:01:37]} 12. Nxg6 {[%clk 0:02:42]}  hxg6 {[%clk 0:01:31]} 13. Nxe4 {[%clk 0:02:42]}  dxe4 {[%clk 0:01:31]} 14. O-O {[%clk 0:02:43]}  Be7 {[%clk 0:00:52]} 15. Re1 {[%clk 0:02:42]}  O-O {[%clk 0:00:45]} 16. h4 {[%clk 0:02:39]}  f5 {[%clk 0:00:42]} 17. c3 {[%clk 0:02:36]}  Nc6 {[%clk 0:00:37]} 18. Qb3+ {[%clk 0:02:36]}  Kh7 {[%clk 0:00:30]} 19. Bf4 {[%clk 0:02:37]}  b6 {[%clk 0:00:19]} 20. Rad1 {[%clk 0:02:35]}  Qe8 {[%clk 0:00:18]} 21. Qe6 {[%clk 0:02:33]}  Rd8 {[%clk 0:00:11]} 22. Bc7 {[%clk 0:02:25]}  Rxd1 {[%clk 0:00:10]} 23. Rxd1 {[%clk 0:02:26]}  Bd8 {[%clk 0:00:08]} 24. Qd6 {[%clk 0:02:15]}  Bxc7 {[%clk 0:00:06]} 25. Qxc7 {[%clk 0:02:16]}  Ne5 {[%clk 0:00:06]} 26. Rd5 {[%clk 0:02:12]}  Nf3+ {[%clk 0:00:05]} 27. Kf1 {[%clk 0:02:02]}  Qb5+ {[%clk 0:00:05]} 28. c4 {[%clk 0:01:57]}  Qxc4+ {[%clk 0:00:05]} 0-1


[Site "https://www.chess.com"]

[Event "Titled Tuesday Blitz October 11 Early 2022"]
[White "Martin Carmona, Gaston Manuel"]
[Black "De Silva, L M S T"]
[WhiteFideId "22284567"]
[BlackFideId "9953698"]
[WhiteElo "2235"]
[BlackElo "2416"]
[Result "0-1"]
[Round "02"]
[TimeControl "180+1"]
[Date "2022.10.12"]
[WhiteClock "0:00:07"]
[BlackClock "0:01:34"]

1. d4 {[%clk 0:02:47]}  Nf6 {[%clk 0:02:58]} 2. Nf3 {[%clk 0:02:45]}  e6 {[%clk 0:02:58]} 3. c4 {[%clk 0:02:45]}  b6 {[%clk 0:02:59]} 4. a3 {[%clk 0:02:43]}  Bb7 {[%clk 0:03:00]} 5. Nc3 {[%clk 0:02:44]}  g6 {[%clk 0:03:00]} 6. Qc2 {[%clk 0:02:42]}  Bg7 {[%clk 0:03:01]} 7. e4 {[%clk 0:02:43]}  d6 {[%clk 0:03:01]} 8. Be2 {[%clk 0:02:43]}  O-O {[%clk 0:03:01]} 9. h4 {[%clk 0:02:40]}  Nbd7 {[%clk 0:03:02]} 10. Be3 {[%clk 0:02:36]}  e5 {[%clk 0:03:01]} 11. d5 {[%clk 0:02:36]}  Ng4 {[%clk 0:03:00]} 12. Bg5 {[%clk 0:02:36]}  f6 {[%clk 0:03:00]} 13. Bd2 {[%clk 0:02:36]}  h5 {[%clk 0:02:56]} 14. Nh2 {[%clk 0:02:31]}  f5 {[%clk 0:02:54]} 15. Bg5 {[%clk 0:02:31]}  Bf6 {[%clk 0:02:54]} 16. Nf3 {[%clk 0:02:29]}  f4 {[%clk 0:02:49]} 17. Bxf6 {[%clk 0:02:27]}  Ndxf6 {[%clk 0:02:50]} 18. Ng5 {[%clk 0:02:28]}  Bc8 {[%clk 0:02:50]} 19. Ne6 {[%clk 0:01:31]}  Bxe6 {[%clk 0:02:48]} 20. dxe6 {[%clk 0:01:31]}  Qe7 {[%clk 0:02:48]} 21. Nd5 {[%clk 0:01:29]}  Qg7 {[%clk 0:02:43]} 22. Bxg4 {[%clk 0:00:53]}  Nxg4 {[%clk 0:02:42]} 23. O-O-O {[%clk 0:00:48]}  c6 {[%clk 0:02:26]} 24. Nb4 {[%clk 0:00:31]}  Qc7 {[%clk 0:02:24]} 25. Qd2 {[%clk 0:00:27]}  a5 {[%clk 0:02:21]} 26. Nc2 {[%clk 0:00:26]}  Rad8 {[%clk 0:02:21]} 27. f3 {[%clk 0:00:25]}  Nf6 {[%clk 0:02:20]} 28. g4 {[%clk 0:00:25]}  hxg4 {[%clk 0:02:18]} 29. fxg4 {[%clk 0:00:24]}  Nxg4 {[%clk 0:02:19]} 30. Qg2 {[%clk 0:00:22]}  Nf6 {[%clk 0:02:09]} 31. Qxg6+ {[%clk 0:00:22]}  Kh8 {[%clk 0:02:10]} 32. Rdg1 {[%clk 0:00:20]}  Qe7 {[%clk 0:02:07]} 33. Ne1 {[%clk 0:00:20]}  Rg8 {[%clk 0:02:05]} 34. Qh6+ {[%clk 0:00:20]}  Nh7 {[%clk 0:02:06]} 35. Nf3 {[%clk 0:00:19]}  Qf6 {[%clk 0:01:59]} 36. Qh5 {[%clk 0:00:16]}  Qxe6 {[%clk 0:01:40]} 37. Ng5 {[%clk 0:00:16]}  Qxc4+ {[%clk 0:01:40]} 38. Kb1 {[%clk 0:00:16]}  Rg7 {[%clk 0:01:40]} 39. Qh6 {[%clk 0:00:11]}  Rdg8 {[%clk 0:01:34]} 40. Nxh7 {[%clk 0:00:07]}  Rxg1+ {[%clk 0:01:34]} 0-1


[Site "https://www.chess.com"]

[Event "Titled Tuesday Blitz October 11 Early 2022"]
[White "Mikhailovsky, Vladimir"]
[Black "Osinenko, Anton"]
[WhiteFideId "34105414"]
[BlackFideId "4158970"]
[WhiteElo "2297"]
[BlackElo "2294"]
[Result "1/2-1/2"]
[Round "02"]
[TimeControl "180+1"]
[Date "2022.10.12"]
[WhiteClock "0:00:04"]
[BlackClock "0:00:16"]

1. e4 {[%clk 0:03:00]}  Nc6 {[%clk 0:02:58]} 2. d4 {[%clk 0:03:00]}  d5 {[%clk 0:02:58]} 3. Nc3 {[%clk 0:03:00]}  e6 {[%clk 0:02:57]} 4. e5 {[%clk 0:02:49]}  Nge7 {[%clk 0:02:57]} 5. f4 {[%clk 0:02:48]}  h5 {[%clk 0:02:56]} 6. Nf3 {[%clk 0:02:48]}  Nf5 {[%clk 0:02:56]} 7. Bb5 {[%clk 0:02:42]}  Bd7 {[%clk 0:02:55]} 8. Ne2 {[%clk 0:02:42]}  a6 {[%clk 0:02:53]} 9. Bd3 {[%clk 0:02:42]}  g6 {[%clk 0:02:38]} 10. c3 {[%clk 0:02:41]}  Bh6 {[%clk 0:02:37]} 11. g3 {[%clk 0:02:37]}  Qe7 {[%clk 0:02:36]} 12. b4 {[%clk 0:02:29]}  a5 {[%clk 0:02:17]} 13. b5 {[%clk 0:02:24]}  Na7 {[%clk 0:02:09]} 14. a4 {[%clk 0:02:25]}  c5 {[%clk 0:02:09]} 15. bxc6 {[%clk 0:01:42]}  Bxc6 {[%clk 0:02:02]} 16. Kf2 {[%clk 0:01:21]}  Qd7 {[%clk 0:02:00]} 17. h3 {[%clk 0:01:15]}  Ne7 {[%clk 0:01:50]} 18. g4 {[%clk 0:01:11]}  Bg7 {[%clk 0:01:50]} 19. Bc2 {[%clk 0:00:45]}  Nec8 {[%clk 0:01:38]} 20. Ba3 {[%clk 0:00:44]}  Nb6 {[%clk 0:01:38]} 21. Bc5 {[%clk 0:00:44]}  Nc4 {[%clk 0:01:36]} 22. Qb1 {[%clk 0:00:31]}  Bf8 {[%clk 0:01:35]} 23. Bxf8 {[%clk 0:00:19]}  Kxf8 {[%clk 0:01:36]} 24. gxh5 {[%clk 0:00:14]}  Rxh5 {[%clk 0:01:35]} 25. Ng3 {[%clk 0:00:14]}  Rh6 {[%clk 0:01:35]} 26. h4 {[%clk 0:00:14]}  b5 {[%clk 0:01:34]} 27. h5 {[%clk 0:00:11]}  gxh5 {[%clk 0:01:28]} 28. Nxh5 {[%clk 0:00:11]}  Rxh5 {[%clk 0:00:52]} 29. Rxh5 {[%clk 0:00:11]}  Ke7 {[%clk 0:00:53]} 30. Qg1 {[%clk 0:00:11]}  Kd8 {[%clk 0:00:50]} 31. Rh8+ {[%clk 0:00:10]}  Kc7 {[%clk 0:00:51]} 32. Rxa8 {[%clk 0:00:11]}  Bxa8 {[%clk 0:00:52]} 33. Qg8 {[%clk 0:00:09]}  bxa4 {[%clk 0:00:42]} 34. Ng5 {[%clk 0:00:09]}  Bc6 {[%clk 0:00:40]} 35. Qxf7 {[%clk 0:00:10]}  Qxf7 {[%clk 0:00:39]} 36. Nxf7 {[%clk 0:00:11]}  Nb5 {[%clk 0:00:40]} 37. Bxa4 {[%clk 0:00:11]}  Nxc3 {[%clk 0:00:40]} 38. Bxc6 {[%clk 0:00:11]}  Kxc6 {[%clk 0:00:41]} 39. Nd6 {[%clk 0:00:09]}  Ne4+ {[%clk 0:00:36]} 40. Nxe4 {[%clk 0:00:09]}  dxe4 {[%clk 0:00:37]} 41. Ke2 {[%clk 0:00:06]}  Kd5 {[%clk 0:00:37]} 42. Rb1 {[%clk 0:00:04]}  a4 {[%clk 0:00:32]} 43. Rb5+ {[%clk 0:00:04]}  Kxd4 {[%clk 0:00:32]} 44. f5 {[%clk 0:00:05]}  a3 {[%clk 0:00:28]} 45. Rb8 {[%clk 0:00:04]}  Kxe5 {[%clk 0:00:28]} 46. fxe6 {[%clk 0:00:02]}  Kxe6 {[%clk 0:00:29]} 47. Ra8 {[%clk 0:00:02]}  Kd5 {[%clk 0:00:29]} 48. Kd1 {[%clk 0:00:02]}  e3 {[%clk 0:00:17]} 49. Ke2 {[%clk 0:00:03]}  Kd4 {[%clk 0:00:17]} 50. Ra4 {[%clk 0:00:03]}  Kc3 {[%clk 0:00:17]} 51. Rxa3+ {[%clk 0:00:04]}  Nxa3 {[%clk 0:00:16]} 52. Kxe3 {[%clk 0:00:04]} 1/2-1/2


[Site "https://www.chess.com"]